[Event "5th Sharjah Masters 2022"]
[Site "Sharjah"]
[Date "2022.05.26"]
[Round "6.37"]
[White "Vogt, Lothar"]
[Black "Dimakiling, Oliver"]
[Result "0-1"]
[ECO "C65"]
[WhiteElo "2365"]
[BlackElo "2420"]
[Annotator "TA"]
[PlyCount "93"]
[EventDate "2022.05.21"]
[EventType "swiss"]
[EventCountry "UAE"]
[SourceTitle "playchess.com"]
[Source "ChessBase"]
[SourceQuality "1"]
[TimeControl "5400+30"]

{[%evp 9,93,19,46,25,112,90,88,85,91,88,102,106,93,102,97,91,82,89,120,87,64,72,83,62,71,48,47,62,63,51,64,45,40,1,19,19,12,0,0,0,0,0,10,0,0,0,-8,-13,-7,-34,0,-4,0,-6,-7,-17,0,-37,0,0,0,-24,0,-128,-146,-219,-228,-341,-326,-349,-327,-339,-331,-337,-316,-291,-284,-334,-308,-856,-953,-2224,-2066,-1519,-1209,-12847]} 1. e4 {[%emt 0:00:04]} e5 {[%emt 0:00:08]} 2. Nf3 {[%emt 0:00:07]} Nc6 {[%emt 0:00:07]} 3. Bb5 {[%emt 0:00:08]} Nf6 {[%emt 0:00:11]} 4. d3 {[%emt 0:00:51][%cal Bd2d3,Bd3d4][%mdl 32]} Ne7 {[%emt 0:00:09]} 5. d4 {[%emt 0:01:51]} c6 {[%emt 0:02:53]} 6. dxe5 {[%emt 0:04:35] [#] C65: Ruy Lopez: Berlin Defence (3...Nf6), unusual lines and 4 0-0 Bc5.} Qa5+ $146 {[%emt 0:01:03]} (6... Nxe4 $11 7. Bd3 Nc5) ({Predecessor:} 6... Nxe4 7. Bd3 Nc5 8. O-O Nxd3 9. Qxd3 Ng6 10. Nc3 d5 11. exd6 Bxd6 12. Re1+ Be7 13. Qxd8+ Kxd8 {1-0 (34) Firouzja,A (2728)-Hess,R (2591) Chess.com INT 2020}) 7. Nbd2 {[%emt 0:07:50][%cal Bb1d2,Bd2f1,Bf1e3,Be3c4][%mdl 32]} Qxb5 {[%emt 0:01:22]} 8. exf6 {[%emt 0:00:08] White is better.} gxf6 {[%emt 0:00:08]} 9. c4 {[%emt 0:05:02]} Qh5 {[%emt 0:00:48]} 10. Nf1 {[%emt 0:00:52]} Qc5 {[%emt 0:07:40]} 11. b3 {[%emt 0:02:55]} d5 {[%emt 0:00:34]} 12. Be3 {[%emt 0:02:49]} Qa5+ {[%emt 0:00:19] [#]} 13. Bd2 $1 {[%emt 0:02:04]} Qa6 {[%emt 0:00:20]} 14. exd5 {[%emt 0:00:47]} cxd5 {[%emt 0:00:07]} 15. Ne3 {[%emt 0:00:39]} dxc4 {[%emt 0:00:31]} 16. O-O {[%emt 0:01:57]} ({Don't play} 16. Nxc4 Rg8 $14) 16... Be6 {[%emt 0:05:00]} 17. Nxc4 {[%emt 0:05:46]} O-O-O {[%emt 0:01:27]} 18. Rc1 {[%emt 0:05:05] White wants to mate with Nb6+.} Nc6 {[%emt 0:00:33]} 19. Qc2 {[%emt 0:01:46]} Kb8 {[%emt 0:12:50]} 20. Bf4+ {[%emt 0:01:44]} (20. Na5 $5) 20... Ka8 {[%emt 0:00:06]} 21. a4 {[%emt 0:01:48]} (21. Rfd1 $5 {[%cal Rd1d8]} Bc5 22. a4 $11) 21... Bc5 {[%emt 0:06:44] Threatens to win with ...Nb4. This bishop pair is nice.} (21... Nb4 $5 {[%cal Rb4c2]} 22. Qe4 Bd5 $11) 22. Rfd1 {[%emt 0:03:00]} Bxc4 {[%emt 0:04:20]} 23. Qxc4 {[%emt 0:03:29]} Qxc4 {[%emt 0:02:56]} 24. bxc4 {[%emt 0:00:21]} b6 {[%emt 0:00:43]} 25. Kf1 {[%emt 0:05:26]} Na5 {[%emt 0:01:03]} 26. Rxd8+ {[%emt 0:02:28]} Rxd8 {[%emt 0:00:06]} 27. Ke2 {[%emt 0:00:24] Against Rd3} Kb7 {[%emt 0:00:23]} 28. Nd2 {[%emt 0:01:12]} Bb4 {[%emt 0:01:29]} 29. Nf3 {[%emt 0:04:21]} Kc6 {[%emt 0:00:44]} 30. Rc2 {[%emt 0:01:26]} Nb7 {[%emt 0:02:35]} 31. Be3 {[%emt 0:02:10]} Bc5 {[%emt 0:00:32]} 32. Rc3 {[%emt 0:02:38]} a5 {[%emt 0:00:53]} 33. Nd2 {[%emt 0:03:20]} Re8 {[%emt 0:04:30]} 34. Nb3 {[%emt 0:06:57]} f5 {[%emt 0:01:07]} 35. Kf3 {[%emt 0:01:22]} Re4 {[%emt 0:00:16]} 36. Nd2 {[%emt 0:00:56] [#]} (36. g3 $11) 36... Bb4 $1 $17 {[%emt 0:00:52] Black is more active.} 37. Rd3 {[%emt 0:11:07]} (37. Rc2 $17 Bxd2 38. Bxd2) 37... Bxd2 $19 {[%emt 0:00:12]} 38. Bxd2 {[%emt 0:00:05]} (38. Rxd2 $142 Rxc4 39. Ra2) 38... Rxc4 {[%emt 0:00:08][%mdl 4096] Endgame KRB-KRN} 39. Ke2 {[%emt 0:00:12]} Rxa4 {[%emt 0:03:34]} 40. Rh3 {[%emt 0:00:03]} Ra2 {[%emt 0:00:53]} 41. Rxh7 {[%emt 0:00:12]} Nd6 {[%emt 0:00:28]} 42. Kd3 {[%emt 0:01:43]} Ne4 {[%emt 0:00:34]} 43. Be3 {[%emt 0:01:49]} Nxf2+ {[%emt 0:00:34]} 44. Bxf2 $2 {[%emt 0:01:18]} (44. Kc4 Ne4 45. Kd3) 44... Rxf2 {[%emt 0:00:05] Black is clearly winning.} 45. Rg7 {[%emt 0:00:06]} a4 {[%emt 0:00:26] Hoping for ...a3.} 46. Ke3 {[%emt 0:00:20] [#]} a3 $1 {[%emt 0:01:58] ...Rf1 is the strong threat.} 47. Kd4 {[%emt 0:08:47] Weighted Error Value: White=0.35/Black=0.08 (flawless)} (47. Rg8 a2) 0-1

[Event "5th Sharjah Masters 2022"]
[Site "Sharjah"]
[Date "2022.05.26"]
[Round "6.38"]
[White "Injac, Teodora"]
[Black "Al Hosani, Omran"]
[Result "1/2-1/2"]
[ECO "E11"]
[WhiteElo "2384"]
[BlackElo "2191"]
[Annotator "TA"]
[PlyCount "75"]
[EventDate "2022.05.21"]
[EventType "swiss"]
[EventCountry "UAE"]
[SourceTitle "playchess.com"]
[Source "ChessBase"]
[SourceQuality "1"]
[TimeControl "5400+30"]

{[%evp 11,75,16,23,19,23,24,33,29,37,20,30,29,27,22,33,28,45,40,41,38,45,35,35,32,39,23,25,27,23,23,27,30,28,21,22,11,37,34,30,32,30,-6,-9,-31,-22,-43,0,0,0,0,0,0,0,0,0,0,9,0,0,0,8,8,36,8,15,0]} 1. d4 {[%emt 0:00:10]} Nf6 {[%emt 0:01:21]} 2. c4 {[%emt 0:00:25]} e6 {[%emt 0:00:24]} 3. Nf3 {[%emt 0:00:28]} Bb4+ {[%emt 0:00:28]} 4. Bd2 {[%emt 0:01:15]} a5 {[%emt 0:00:12]} 5. a3 {[%emt 0:00:44]} Bxd2+ {[%emt 0:10:13]} 6. Qxd2 {[%emt 0:00:26]} O-O {[%emt 0:00:13]} 7. Nc3 {[%emt 0:00:56] E11: Bogo-Indian.} d5 $1 {[%emt 0:00:29][%mdl 4] Inhibits e4. is currently scoring better than 7...d6.} 8. e3 {[%emt 0:02:52]} b6 {[%emt 0:01:35]} 9. cxd5 {[%emt 0:06:54] White is slightly better.} exd5 {[%emt 0:00:09]} 10. Bd3 {[%emt 0:00:58]} Bb7 {[%emt 0:01:59]} 11. O-O {[%emt 0:01:12]} (11. Ne5 {keeps more tension.} Nbd7 12. f4 Ne4 13. Nxe4 dxe4 14. Bb5) 11... Nbd7 {[%emt 0:00:05]} 12. b4 {[%emt 0:09:53] [#]} axb4 $146 {[%emt 0:03:10]} ({Predecessor:} 12... c6 13. bxa5 Rxa5 14. a4 Qe7 15. Qc2 g6 16. Rfe1 c5 17. Bb5 Ne4 18. Nxe4 dxe4 19. Nd2 Rc8 20. Qb2 Bd5 21. Rec1 Raa8 22. Bxd7 Qxd7 23. Qxb6 Rc6 {½-½ (23) Siddharth,J (2331)-Kosic,D (2425) Arandjelovac 2022}) 13. axb4 {[%emt 0:00:09]} c6 {[%emt 0:00:02]} 14. Rxa8 {[%emt 0:06:07]} Qxa8 {[%emt 0:00:13]} 15. Qb2 {[%emt 0:00:05]} Qb8 {[%emt 0:01:12]} 16. h3 {[%emt 0:13:43]} Qc7 {[%emt 0:01:38]} 17. Ra1 {[%emt 0:11:28]} g6 {[%emt 0:04:04]} 18. Nd2 {[%emt 0:03:17]} Ra8 {[%emt 0:01:18]} 19. Rxa8+ {[%emt 0:02:47]} Bxa8 {[%emt 0:00:09]} 20. Qa3 {[%emt 0:02:33]} Bb7 {[%emt 0:00:37]} 21. Nb3 {[%emt 0:00:17]} Qd6 {[%emt 0:00:49]} 22. Na2 {[%emt 0:00:51]} Kg7 {[%emt 0:03:50]} 23. Qa7 {[%emt 0:00:48]} Qb8 {[%emt 0:01:11]} 24. Qxb8 {[%emt 0:03:50]} Nxb8 {[%emt 0:01:15]} 25. b5 {[%emt 0:00:22]} cxb5 {[%emt 0:00:34]} 26. Nb4 {[%emt 0:01:26]} Nc6 {[%emt 0:00:51]} 27. Nc2 {[%emt 0:06:00]} b4 {[%emt 0:01:24] Threatens to win with ...Na5.} 28. Nc1 {[%emt 0:03:43]} Kf8 {[%emt 0:03:36]} 29. Bb5 {[%emt 0:02:48]} Ke7 {[%emt 0:00:32]} 30. Bxc6 {[%emt 0:03:02][%mdl 64] [#] Remove Defender} Bxc6 {[%emt 0:00:15]} 31. Nxb4 $11 {[%emt 0:00:02][%mdl 4096] Endgame KBN-KNN} Kd6 {[%emt 0:00:31]} 32. f3 {[%emt 0:00:38]} Bb5 {[%emt 0:01:30]} 33. Kf2 {[%emt 0:00:48]} Bc4 {[%emt 0:00:28]} 34. Ne2 {[%emt 0:02:26]} b5 {[%emt 0:04:20]} 35. Nc3 {[%emt 0:00:48]} Nd7 {[%emt 0:05:11]} 36. e4 {[%emt 0:00:49]} Nb6 {[%emt 0:00:02]} 37. Ke3 {[%emt 0:00:48]} f6 {[%emt 0:01:00]} 38. h4 {[%emt 0:13:42] Weighted Error Value: White=0.05 (flawless) /Black=0.06 (flawless)} 1/2-1/2

[Event "5th Sharjah Masters 2022"]
[Site "Sharjah"]
[Date "2022.05.26"]
[Round "6.39"]
[White "Ammar, Sedrani"]
[Black "Begmuratov, Khumoyun"]
[Result "1/2-1/2"]
[ECO "A45"]
[WhiteElo "2255"]
[BlackElo "2384"]
[Annotator "TA"]
[PlyCount "40"]
[EventDate "2022.05.21"]
[EventType "swiss"]
[EventCountry "UAE"]
[SourceTitle "playchess.com"]
[Source "ChessBase"]
[SourceQuality "1"]
[TimeControl "5400+30"]

{[%evp 9,40,14,16,12,25,22,37,35,39,36,35,43,39,18,22,27,34,23,27,0,0,0,20,27,39,0,17,0,0,0,0,-7,0]} 1. d4 {[%emt 0:00:03]} Nf6 {[%emt 0:00:19]} 2. Bg5 {[%emt 0:00:09]} Ne4 {[%emt 0:00:29]} 3. Bf4 {[%emt 0:00:10]} Nc6 {[%emt 0:00:34]} 4. Nd2 {[%emt 0:06:32]} Nxd2 {[%emt 0:00:51]} 5. Qxd2 {[%emt 0:00:04]} d5 {[%emt 0:00:10]} 6. e3 {[%emt 0:00:15] A45: Trompowsky Attack.} a6 {[%emt 0:01:13]} 7. Bd3 {[%emt 0:01:32]} Bg4 {[%emt 0:01:05][%cal Bc8g4,Bg4h5,Bh5g6][%mdl 32] [#]} 8. c3 $146 {[%emt 0:03:44] White is slightly better.} ({Predecessor:} 8. h3 Bh5 9. Nf3 Bxf3 10. gxf3 e6 11. c3 Bd6 12. e4 Qd7 13. e5 Be7 14. b4 {0-1 (44) Bendayan Claros,A (2159)-Dauner,B (2321) Chess.com INT 2022}) 8... e6 {[%emt 0:00:37]} 9. Ne2 {[%emt 0:14:53]} Bd6 {[%emt 0:01:01]} 10. f3 {[%emt 0:04:09] [#] Threatens to win with Bxd6.} Bh5 {[%emt 0:00:36]} 11. O-O {[%emt 0:07:44]} Bg6 {[%emt 0:03:40]} 12. e4 {[%emt 0:03:56]} dxe4 {[%emt 0:02:13]} 13. fxe4 {[%emt 0:01:35]} e5 {[%emt 0:04:00]} 14. Be3 {[%emt 0:03:15]} (14. Bg5 $5 {[%cal Rg5d8]} f6 15. d5 $11) 14... exd4 {[%emt 0:08:35]} 15. cxd4 {[%emt 0:00:37]} O-O {[%emt 0:00:22]} 16. Rad1 {[%emt 0:10:32]} Bb4 {[%emt 0:05:16][%cal Bd6b4,Bb4a5,Ba5b6][%mdl 32]} 17. Qc2 {[%emt 0:03:45]} Ba5 {[%emt 0:00:28] The position is equal.} 18. a3 {[%emt 0:01:10] Inhibits Nb4.} Bb6 {[%emt 0:00:43][%cal Rc6d4]} 19. Qc3 {[%emt 0:03:22]} Qe7 {[%emt 0:06:59]} 20. Ng3 {[%emt 0:04:19]} Rad8 {[%emt 0:11:08] Weighted Error Value: White=0.07 (flawless) /Black=0.03 (flawless)} 1/2-1/2

[Event "5th Sharjah Masters 2022"]
[Site "Sharjah"]
[Date "2022.05.26"]
[Round "6.40"]
[White "Farahat, Ali"]
[Black "Saeed, Ishaq"]
[Result "1/2-1/2"]
[ECO "C84"]
[WhiteElo "2381"]
[BlackElo "2397"]
[Annotator "TA"]
[PlyCount "92"]
[EventDate "2022.05.21"]
[EventType "swiss"]
[EventCountry "UAE"]
[SourceTitle "playchess.com"]
[Source "ChessBase"]
[SourceQuality "1"]
[TimeControl "5400+30"]

{[%evp 12,92,21,0,18,12,28,24,24,31,25,20,22,22,33,32,33,35,35,35,47,25,23,43,56,0,27,2,44,38,53,24,28,29,27,16,14,14,16,18,36,8,27,16,16,0,0,-88,-79,-75,-80,-80,-84,-80,-77,-75,-72,-76,-76,-77,-48,-93,-68,-89,-72,-91,-34,-60,-22,-22,-20,-15,-21,-28,-17,-25,-14,-23,0,-22,0,-33,0]} 1. e4 {[%emt 0:00:04]} e5 {[%emt 0:05:00]} 2. Nf3 {[%emt 0:00:06]} Nc6 {[%emt 0:00:07]} 3. Bb5 {[%emt 0:00:11]} a6 {[%emt 0:00:13]} 4. Ba4 {[%emt 0:00:08]} Nf6 {[%emt 0:00:08][%cal Bg8f6,Bf6d7,Bd7c5][%mdl 32]} 5. d3 {[%emt 0:00:16]} d6 {[%emt 0:00:17]} 6. c4 {[%emt 0:01:28]} Be7 {[%emt 0:15:15]} 7. O-O {[%emt 0:04:43]} O-O {[%emt 0:00:16] C84: Closed Ruy Lopez: Unusual White 6th moves.} 8. h3 {[%emt 0:01:04]} Nd7 {[%emt 0:00:24]} 9. Nc3 {[%emt 0:01:04]} Nc5 {[%emt 0:00:33] White has an edge.} 10. Bxc6 {[%emt 0:00:59]} bxc6 {[%emt 0:00:12]} 11. d4 {[%emt 0:00:10]} exd4 {[%emt 0:04:19]} 12. Nxd4 {[%emt 0:00:06]} Bd7 {[%emt 0:00:21]} 13. Be3 {[%emt 0:05:14]} Rb8 {[%emt 0:00:47] [#]} 14. Qc2 $146 {[%emt 0:00:46]} ({Predecessor:} 14. Qd2 Bf6 15. Rad1 Re8 16. f3 Qc8 17. Nde2 Ne6 18. c5 Nf8 19. b3 d5 20. exd5 Bxc3 21. Nxc3 Bxh3 22. gxh3 Qxh3 {1-0 (33) Gullaksen,E (2337)-Gutierrez Carmona,J (2165) Prague 2020}) 14... Re8 {[%emt 0:02:34]} 15. Rad1 {[%emt 0:03:25][%cal Od4c6]} Qc8 {[%emt 0:06:25]} 16. Nf3 {[%emt 0:17:40]} Ne6 {[%emt 0:38:55]} 17. Rfe1 {[%emt 0:01:59]} Nf8 {[%emt 0:04:17]} 18. Ne2 {[%emt 0:09:08]} ({White should try} 18. Bf4 $14) 18... Ng6 {[%emt 0:06:27]} 19. Ng3 {[%emt 0:01:30]} Nh4 {[%emt 0:07:04]} 20. Nxh4 {[%emt 0:02:39]} Bxh4 {[%emt 0:00:02]} 21. Nf5 {[%emt 0:02:58]} Bxf5 {[%emt 0:02:01]} 22. exf5 {[%emt 0:00:04]} c5 {[%emt 0:02:00]} 23. Bc1 {[%emt 0:03:50]} Bf6 {[%emt 0:00:33]} 24. b3 {[%emt 0:01:51]} Qd7 {[%emt 0:00:32]} 25. Qd3 {[%emt 0:00:55]} h6 {[%emt 0:00:48]} 26. Kf1 {[%emt 0:03:09]} Qc6 {[%emt 0:00:24]} 27. Rxe8+ {[%emt 0:07:57]} Rxe8 {[%emt 0:00:08]} 28. Qd5 {[%emt 0:00:29]} Qxd5 {[%emt 0:01:11]} 29. Rxd5 $11 {[%emt 0:02:40][%mdl 4096] Endgame KRB-KRB} (29. cxd5 $11 {remains equal.} Bc3 30. f3) 29... Bd4 $17 {[%emt 0:01:00]} 30. Bd2 {[%emt 0:00:05] [#]} Rd8 $1 {[%emt 0:01:44] aiming for ...c6.} 31. Bf4 {[%emt 0:04:29][%cal Ob3b4] [#]} a5 $1 {[%emt 0:00:05]} 32. f6 {[%emt 0:00:52]} Bxf6 {[%emt 0:01:46]} 33. Rd3 {[%emt 0:00:15]} Ra8 {[%emt 0:00:36]} 34. a4 {[%emt 0:00:04]} Bg5 {[%emt 0:00:26]} 35. Bg3 {[%emt 0:02:13]} f5 {[%emt 0:00:07]} 36. f3 {[%emt 0:00:17]} Kf7 {[%emt 0:00:10]} 37. Be1 {[%emt 0:00:13]} Bf6 {[%emt 0:00:35]} 38. g4 {[%emt 0:00:19]} fxg4 {[%emt 0:00:13]} ({Better is} 38... f4 $17) 39. hxg4 {[%emt 0:00:06]} Bd4 {[%emt 0:00:25]} 40. f4 {[%emt 0:00:28]} c6 {[%emt 0:01:01]} 41. Ke2 {[%emt 0:02:11]} d5 {[%emt 0:00:06]} 42. Kd1 {[%emt 0:00:15]} Ke6 {[%emt 0:01:26]} 43. Kc2 {[%emt 0:00:35]} Kd6 {[%emt 0:00:34]} 44. Bd2 {[%emt 0:00:24]} Ke6 {[%emt 0:00:06]} 45. Be1 {[%emt 0:01:07]} Kd6 {[%emt 0:00:00]} 46. Bd2 {[%emt 0:00:14]} g6 {[%emt 0:01:57] Weighted Error Value: White=0.11 (very precise) /Black=0.10 (very precise)} 1/2-1/2

[Event "5th Sharjah Masters 2022"]
[Site "Sharjah"]
[Date "2022.05.27"]
[Round "7.1"]
[White "Salem, A.R. Saleh"]
[Black "Abdusattorov, Nodirbek"]
[Result "0-1"]
[ECO "B44"]
[WhiteElo "2690"]
[BlackElo "2661"]
[Annotator "TA"]
[PlyCount "64"]
[EventDate "2022.05.21"]
[EventType "swiss"]
[EventCountry "UAE"]
[SourceTitle "playchess.com"]
[Source "ChessBase"]
[SourceQuality "1"]
[TimeControl "5400+30"]

{[%evp 27,64,5,0,-43,-45,-50,-52,-56,-73,-81,-85,-85,-68,-168,-162,-245,-233,-271,-195,-193,-189,-191,-185,-204,-156,-281,-263,-352,-256,-241,-235,-464,-465,-504,-500,-595,-576,-1979,-1922]} 1. e4 {[%emt 0:00:03]} c5 {[%emt 0:00:33]} 2. Nf3 {[%emt 0:00:17][%cal Bg1f3,Bf3d4,Bd4b5][%mdl 32]} e6 {[%emt 0:00:22]} 3. d4 {[%emt 0:00:48]} cxd4 {[%emt 0:00:08]} 4. Nxd4 {[%emt 0:00:02]} Nc6 {[%emt 0:00:22]} 5. Nb5 {[%emt 0:01:50]} d6 {[%emt 0:01:06]} 6. c4 {[%emt 0:00:06]} Nf6 {[%emt 0:01:02]} 7. N1c3 {[%emt 0:00:06]} a6 {[%emt 0:00:29]} 8. Na3 {[%emt 0:00:06]} Be7 {[%emt 0:03:18]} 9. Be2 {[%emt 0:00:42]} O-O {[%emt 0:00:15]} 10. O-O {[%emt 0:00:09]} b6 {[%emt 0:00:28]} 11. Be3 {[%emt 0:00:11]} Bb7 {[%emt 0:01:28]} 12. Qb3 {[%emt 0:02:41]} Nd7 {[%emt 0:02:51][%cal Bf6d7,Bd7c5,Bc5e4][%mdl 32]} 13. Rfd1 {[%emt 0:00:06]} Nc5 {[%emt 0:04:53]} 14. Qc2 {[%emt 0:00:28]} Bf6 $1 {[%emt 0:06:47] 14...Bf6 scores better than 14...Qc7.} 15. f3 {[%emt 0:02:47] B44: Sicilian: Taimanov: 5 Nb5.} Be5 {[%emt 0:00:36]} 16. Bf1 {[%emt 0:02:35]} f5 {[%emt 0:14:14] [#] aiming for ...fxe4.} 17. f4 $146 {[%emt 0:12:19] Black is slightly better.} ({Predecessor:} 17. exf5 Rxf5 18. Ne2 Qf6 19. Rab1 Bxh2+ 20. Kxh2 Qe5+ 21. Bf4 Rxf4 22. Nxf4 Qxf4+ 23. Kg1 {0-1 (37) Yudasin,L (2595)-Rublevsky,S (2420) Moscow 1991}) 17... Bxc3 {[%emt 0:00:04]} 18. Qxc3 {[%emt 0:00:03]} Nxe4 {[%emt 0:00:53]} 19. Qb3 {[%emt 0:00:05]} Rb8 {[%emt 0:06:53]} 20. Bxb6 {[%emt 0:01:42]} (20. Nb1 $15) 20... Qh4 {[%emt 0:00:36]} 21. Qe3 {[%emt 0:24:03]} (21. g3 $142 Qe7 22. Bg2) 21... e5 $19 {[%emt 0:06:38]} 22. g3 {[%emt 0:03:24]} Qf6 {[%emt 0:03:25]} 23. Bg2 {[%emt 0:11:11]} exf4 {[%emt 0:01:02]} 24. gxf4 {[%emt 0:00:04]} Qg6 {[%emt 0:01:48]} (24... Qxb2 25. Bc7 Rbe8 26. Rab1 $14) 25. Nc2 {[%emt 0:12:53]} Ne5 {[%emt 0:02:17]} 26. Qe2 {[%emt 0:00:49]} ({Don't blunder} 26. fxe5 $2 f4 27. Qd3 f3 $19) (26. Qh3 $17 {might work better.}) 26... Ng4 {[%emt 0:13:16]} 27. Rd3 {[%emt 0:02:28]} Nef6 {[%emt 0:09:01] Pair of Knights!} 28. Bd4 {[%emt 0:11:57]} ({But not} 28. Rxd6 Rfe8 29. Qd2 {[#]} Nxh2 $1 $19) 28... Rfe8 {[%emt 0:00:05][%cal Bf8e8,Be8e4,Be4f4][%mdl 32]} 29. Qf1 {[%emt 0:00:18]} (29. Qd2) 29... Nh5 {[%emt 0:02:31] White must now prevent ...Bxg2. Black is clearly winning.} 30. Rd2 {[%emt 0:01:37] [#]} Re4 $1 {[%emt 0:02:44][%mdl 512]} 31. Re1 {[%emt 0:00:05]} (31. h3 Rxf4) 31... Rxf4 {[%emt 0:01:17]} 32. Qd3 {[%emt 0:00:24] [#]} Nf2 $1 {[%emt 0:00:26][%mdl 512] Against Qh3. White did not feel at home in the position after the opening.  Weighted Error Value: White=0.90/Black=0.12 (very precise)} 0-1

[Event "5th Sharjah Masters 2022"]
[Site "Sharjah"]
[Date "2022.05.27"]
[Round "7.2"]
[White "Deac, Bogdan-Daniel"]
[Black "Niemann, Hans Moke"]
[Result "1/2-1/2"]
[ECO "C67"]
[WhiteElo "2671"]
[BlackElo "2656"]
[Annotator "TA"]
[PlyCount "62"]
[EventDate "2022.05.21"]
[EventType "swiss"]
[EventCountry "UAE"]
[SourceTitle "playchess.com"]
[Source "ChessBase"]
[SourceQuality "1"]
[TimeControl "5400+30"]

{[%evp 18,62,12,18,24,19,22,12,21,0,0,0,-6,-11,-7,-10,-16,-12,2,8,34,26,32,38,30,37,39,37,40,23,21,22,41,49,141,138,129,131,122,0,0,0,0,0,8,0,0]} 1. e4 {[%emt 0:00:03]} e5 {[%emt 0:00:45]} 2. Nf3 {[%emt 0:00:02]} Nc6 {[%emt 0:00:11]} 3. Bb5 {[%emt 0:00:03]} Nf6 {[%emt 0:09:44]} 4. O-O {[%emt 0:00:35][%cal Bh1f1,Bf1e1,Be1e5][%mdl 32]} Nxe4 {[%emt 0:01:19]} 5. Re1 {[%emt 0:00:08]} Nd6 {[%emt 0:00:12]} 6. Nxe5 {[%emt 0:00:02]} Be7 {[%emt 0:00:11][%cal Bf8e7,Be7f6,Bf6d4][%mdl 32]} 7. Bf1 {[%emt 0:00:03]} Nxe5 {[%emt 0:00:13]} 8. Rxe5 {[%emt 0:00:03]} O-O {[%emt 0:00:10]} 9. d4 {[%emt 0:00:09]} Bf6 {[%emt 0:00:15]} 10. Re1 {[%emt 0:01:10]} Re8 {[%emt 0:00:10] C67: Ruy Lopez: Berlin Defence: 4 0-0 Nxe4.} 11. Bf4 {[%emt 0:02:23]} Rxe1 {[%emt 0:00:13]} 12. Qxe1 {[%emt 0:00:01]} Ne8 {[%emt 0:00:10]} 13. Nc3 {[%emt 0:10:18]} Bxd4 {[%emt 0:00:14]} 14. Nd5 {[%emt 0:00:08]} d6 {[%emt 0:00:14]} 15. Bg5 {[%emt 0:00:11]} f6 {[%emt 0:00:04]} 16. Bh4 {[%emt 0:00:05] aiming for Qe4.} g5 {[%emt 0:10:19]} 17. Qe4 {[%emt 0:00:53] [#]} Be5 $146 {[%emt 0:02:46] Strongly threatening ...f5.} ({Predecessor:} 17... Bxb2 18. Rb1 Be5 19. f4 gxh4 20. fxe5 dxe5 21. Bc4 Be6 22. Rxb7 Kh8 23. Bd3 Bg8 24. Nxc7 {0-1 (29) Caruana,F (2820)-So,W (2770) Paris 2021}) 18. f4 {[%emt 0:05:25]} gxh4 {[%emt 0:01:00]} (18... Bxb2 19. Re1 $1 gxh4 20. Bd3 $16) 19. fxe5 {[%emt 0:00:42]} dxe5 {[%emt 0:00:22]} 20. Bd3 {[%emt 0:01:56][%cal Bf1d3,Bd3e2,Be2h5][%mdl 32]} Kf8 {[%emt 0:00:13]} ({Not} 20... Qd7 21. Qxh4 $1 b5 22. Be4 $18 (22. Nxf6+ Nxf6 23. Qxf6 Bb7 $16)) 21. Rf1 {[%emt 0:11:20]} Be6 $1 {[%emt 0:07:29] [#]} 22. Nxf6 {[%emt 0:09:41][%mdl 64] Decoy} Nxf6 {[%emt 0:00:56]} 23. Qxe5 {[%emt 0:00:35]} (23. Qxh4 $5 {[%cal Rf1f6]} Qd4+ 24. Qxd4 exd4 25. Rxf6+ Ke7 26. Rh6 $16) 23... Kf7 {[%emt 0:00:34]} 24. Be2 {[%emt 0:02:11]} h3 {[%emt 0:10:06]} 25. g4 {[%emt 0:18:39]} h6 {[%emt 0:04:53]} (25... Bxa2 $14 26. b3 (26. g5 Qd5 $11) 26... Qd6 27. Bc4+ Kg7 28. Qg5+ Kh8 29. Qxf6+ Qxf6 30. Rxf6 Rd8) 26. g5 $36 {[%emt 0:00:20][%mdl 2048] White has strong initiative. White is more active.} hxg5 {[%emt 0:00:09] And now ...g4 would win.} 27. Bh5+ {[%emt 0:00:02]} Kg7 {[%emt 0:00:09] [#]} 28. Qxg5+ {[%emt 0:00:05] Really sharp!} (28. c3 $1 $16 Bf5 29. Rxf5) 28... Kh8 $11 {[%emt 0:00:07] White must now prevent ...Qd4+. The position is equal.} 29. Qxf6+ {[%emt 0:04:40]} ({Don't play} 29. Rxf6 Qd4+ 30. Kf1 Bc4+ 31. Ke1 Qe4+ 32. Kf2 Qxc2+ 33. Kg3 Qg2+ 34. Kh4 Qxg5+ 35. Kxg5 Rg8+ 36. Kh6 Bxa2 $15) 29... Qxf6 {[%emt 0:00:11]} 30. Rxf6 {[%emt 0:00:02]} Rg8+ {[%emt 0:01:39]} 31. Kf1 {[%emt 0:00:36]} Bxa2 {[%emt 0:04:00] Weighted Error Value: White=0.09 (flawless) /Black=0.09 (flawless)} 1/2-1/2